bitfinex/quotes_ETHUSD_20260113
["timestamp","ask_amount","ask_price","bid_price","bid_amount"]
[1768337845136,4.74879476,3198.6,3198.0,1e-08]
[1768337845755,7.72523436,3198.6,3198.0,1e-08]
[1768337845929,1.62235516,3198.5,3198.0,1e-08]
[1768337846135,7.87548172,3198.4,3198.0,1e-08]
[1768337846332,4.74891844,3198.4,3198.0,1e-08]
[1768337846528,0.001,3198.3,3198.0,1e-08]
[1768337847080,3.12701449,3199.0,3198.1,1.52908961]
[1768337847240,0.001,3199.0,3198.1,1.52908961]
[1768337848040,0.001,3199.0,3198.3,1.52908961]
[1768337848236,0.001,3199.0,3198.4,1.99467445]
[1768337849679,0.001,3199.0,3198.5,1.52908961]
[1768337851860,0.001,3199.0,3198.6,1.52908961]
[1768337852169,0.0008012,3199.3,3199.0,1.52908961]
[1768337853147,0.0008012,3199.3,3199.1,1.52908961]
[1768337853454,3.12581363,3200.0,3199.3,1.52908961]
[1768337854172,0.0008,3200.0,3199.3,1.52908961]
[1768337854375,3.12580131,3200.0,3199.3,1.52908961]
[1768337854584,0.0008,3200.0,3199.3,1.52908961]
[1768337855075,0.0008,3200.0,3199.0,0.245]
[1768337855076,1.60578205,3200.0,3199.0,0.245]
[1768337855278,1.76556026,3199.9,3199.0,0.245]
[1768337855443,1.76556026,3199.9,3199.0,1.81445696]
[1768337855639,1.76556026,3199.9,3199.0,0.245]
[1768337856493,6.25039064,3199.8,3199.0,0.245]
[1768337856806,7.85537269,3199.8,3199.0,0.245]
[1768337856963,0.0008,3200.0,3199.2,1.56945696]
[1768337857706,3.12581887,3200.0,3199.2,1.56945696]
[1768337858202,0.0008,3200.0,3199.2,1.56945696]
[1768337858508,0.0008,3200.0,3199.3,1.56945696]
[1768337858678,0.001,3199.6,3199.3,1.56945696]
[1768337858879,0.001,3199.6,3199.0,3.55247502]
[1768337858880,0.001,3199.6,3199.5,1.56945696]
[1768337859709,0.0008,3200.0,3199.5,1.54045696]
[1768337860190,0.0008,3200.0,3199.5,1.78545696]
[1768337862905,0.0008,3200.0,3199.6,1.56945696]
[1768337864221,3.12641417,3200.6,3199.9,1.56945696]
[1768337864785,0.002,3200.6,3199.9,1.56945696]
[1768337866519,0.002,3200.6,3199.9,2.03893075]
[1768337866696,0.002,3200.6,3200.0,1.56945696]
[1768337868704,0.002,3200.6,3200.0,1.81445696]
[1768337870519,0.002,3200.3,3200.0,1.81445696]
[1768337870931,0.002,3200.3,3200.0,0.245]
[1768337871399,0.002,3200.3,3200.0,1.81445696]
[1768337872506,0.002,3200.3,3200.0,1.84585696]
[1768337873123,0.002,3200.6,3200.3,1.56945696]
[1768337874119,0.002,3200.6,3200.4,1.56945696]
[1768337874320,0.002,3200.6,3200.5,1.81445696]
[1768337874490,0.002,3200.9,3200.6,1.56945696]
[1768337875623,0.002,3200.9,3200.7,1.56945696]
[1768337875815,0.002,3200.9,3200.8,1.72640266]
[1768337876014,0.002,3200.9,3200.4,1.56945696]
[1768337876216,1.60698205,3200.9,3200.3,0.245]
[1768337877492,3.12421894,3200.8,3200.3,0.245]
[1768337880431,4.73113768,3200.9,3200.3,0.245]
[1768337881144,3.12615563,3200.9,3200.3,0.245]
[1768337881642,5.51684587,3200.9,3200.3,0.245]
[1768337882140,5.51684587,3200.9,3200.3,0.246]
[1768337882303,0.002,3200.5,3200.3,0.246]
[1768337882706,0.002,3200.5,3200.3,1.81545696]
[1768337885657,0.002,3200.8,3200.5,1.64441549]
[1768337885851,0.002,3200.8,3200.6,1.64441549]
[1768337886005,0.002,3200.8,3200.5,0.81397735]
[1768337886338,0.002,3200.8,3200.4,1.64441549]
[1768337889108,1.63867857,3200.8,3200.3,0.001]
[1768337889523,1.63667857,3200.6,3199.6,1.64441549]
[1768337890320,4.76119036,3200.5,3199.6,4.76977653]
[1768337890514,4.76119036,3200.5,3199.7,1.64441549]
[1768337890719,2.89428116,3200.5,3199.7,1.64441549]
[1768337890926,0.002,3200.8,3199.9,1.64441549]
[1768337891240,4.76291058,3200.8,3200.0,0.245]
[1768337891543,1.63667857,3200.7,3200.0,1.64441549]
[1768337891753,0.002,3200.8,3200.1,1.88941549]
[1768337892043,0.47848014,3200.8,3200.1,1.88941549]
[1768337892350,3.12631355,3200.8,3199.9,1.64441549]
[1768337892548,3.12631355,3200.8,3199.3,3.12665852]
[1768337892549,0.002,3200.8,3200.0,0.245]
[1768337892907,0.002,3200.8,3199.7,1.64441549]
[1768337893108,0.002,3200.8,3199.8,0.245]
[1768337893722,0.002,3200.8,3199.8,1.88941549]
[1768337893928,1e-08,3201.4,3201.1,1.64441549]
[1768337894230,1e-08,3201.4,3199.9,0.97657231]
[1768337894231,1e-08,3201.4,3200.0,1.64441549]
[1768337894436,1e-08,3201.4,3200.5,4.76887078]
[1768337894732,1e-08,3201.4,3200.6,1.64441549]
[1768337895271,1e-08,3201.4,3200.7,0.245]
[1768337895622,1e-08,3201.4,3200.7,1.88941549]
[1768337896666,0.002,3200.8,3200.7,1.88941549]
[1768337896853,0.002,3200.8,3200.7,2.39079332]
[1768337898568,1e-08,3201.4,3200.7,2.39079332]
[1768337898729,1e-08,3201.4,3200.8,1.57726387]
[1768337901565,1e-08,3201.4,3200.9,1.57726387]
[1768337905068,1e-08,3201.4,3201.0,1.6085041]
[1768337907036,1e-08,3201.4,3201.1,0.03123926]
[1768337907734,1e-08,3201.4,3201.1,1.60850313]
[1768337908348,1e-08,3201.4,3200.9,1.57726387]
[1768337908555,1e-08,3201.4,3200.7,0.245]
[1768337908556,1e-08,3201.4,3200.7,1.82226387]
[1768337910280,1e-08,3201.4,3200.8,1.57726387]
[1768337910477,1e-08,3201.4,3201.0,1.57726387]
[1768337910677,1e-08,3201.4,3201.2,1.57726387]
[1768337911053,1e-08,3201.4,3201.3,0.245]
[1768337914875,1e-08,3201.4,3201.3,0.2764]
[1768337915273,1e-08,3201.4,3201.3,0.0314]
[1768337916966,1e-08,3201.4,3201.3,1.65124197]
[1768337917190,1e-08,3201.4,3201.3,1.84399]
[1768337919599,1e-08,3201.4,3201.3,0.22414803]
[1768337919806,1e-08,3201.4,3201.3,0.0314]
[1768337922198,1e-08,3201.4,3201.3,0.0024]
[1768337923394,1e-08,3201.4,3201.3,1.62224197]
[1768337924101,1e-08,3201.4,3201.3,0.0024]
[1768337925312,0.002,3201.8,3201.3,1.62224197]
[1768337929416,0.002,3201.8,3201.4,1.61984197]
[1768337931083,0.002,3201.5,3201.4,1.61984197]
[1768337931300,0.002,3201.9,3201.3,4.74350883]
[1768337931517,0.002,3201.9,3201.3,1.61984197]
[1768337931732,0.002,3201.9,3201.3,4.74356992]
[1768337931934,0.002,3201.9,3201.4,0.47435699]
[1768337933428,0.002,3201.9,3201.3,1.61984197]
[1768337934212,0.002,3201.9,3201.4,0.0024]
[1768337934412,0.002,3201.9,3201.4,1.62224197]
[1768337934614,0.002,3201.9,3201.6,1.61984197]
[1768337934907,0.002,3201.9,3201.7,0.245]
[1768337935107,0.002,3202.1,3201.8,1.61984197]
[1768337935308,1.13312257,3202.7,3201.9,1.80632617]
[1768337935696,7.80246979,3202.6,3201.9,1.80632617]
[1768337935907,4.6800021,3202.6,3201.9,1.80632617]
[1768337936831,7.80246857,3202.6,3201.9,1.80632617]
[1768337937234,4.6800021,3202.6,3201.9,0.1864842]
[1768337937535,1.1353912,3202.7,3202.3,1.61984197]
[1768337937536,0.002,3202.7,3202.3,1.61984197]
[1768337937702,0.002,3202.7,3202.3,0.245]
[1768337937898,0.002,3202.7,3202.1,1.62064293]
[1768337938417,0.002,3202.7,3202.2,1.61984197]
[1768337940539,0.14336997,3202.1,3201.4,1.62224197]
[1768337940716,0.14336997,3202.1,3201.8,1.61984197]
[1768337940920,0.14336997,3202.1,3201.9,1.65107342]
[1768337941718,0.14237252,3202.1,3201.9,0.03123145]
[1768337941917,0.1408741,3202.1,3201.8,0.03123243]
[1768337942119,0.1408741,3202.1,3201.8,1.61984197]
[1768337942323,0.1408741,3202.1,3201.8,0.4743265]
[1768337942516,0.1408741,3202.1,3201.8,2.09416847]
[1768337942711,0.1408741,3202.1,3201.9,1.61984197]
[1768337943443,8.20295776,3202.1,3201.6,0.001]
[1768337943648,5.07998575,3202.1,3201.6,0.001]
[1768337943942,4.6800021,3201.8,3201.6,0.001]
[1768337944247,0.01395759,3201.4,3200.2,1.61984197]
[1768337944441,4.6800021,3201.1,3200.2,1.61984197]
[1768337944645,0.245,3201.0,3200.2,0.03124804]
[1768337944809,0.245,3201.0,3200.2,3.12479934]
[1768337945013,0.245,3200.9,3200.2,3.12479934]
[1768337945212,0.245,3200.9,3200.3,1.57006563]
[1768337945506,0.02056335,3201.5,3200.3,1.57006563]
[1768337945819,0.02056335,3201.5,3200.2,6.62982525]
[1768337945820,0.02056335,3201.8,3200.4,1.57006563]
[1768337946021,0.02056335,3201.8,3200.6,1.57006563]
[1768337946220,0.02056335,3201.6,3200.3,1.57006563]
[1768337946421,0.02056335,3201.6,3200.5,6.24902358]
[1768337946635,0.245,3201.5,3200.5,7.81908921]
[1768337947043,0.245,3201.4,3200.6,1.57006563]
[1768337947348,3.12305421,3202.0,3200.5,6.24902358]
[1768337947349,0.16362731,3202.1,3200.8,1.57006563]
[1768337947547,0.245,3202.0,3200.8,1.57006563]
[1768337947749,0.245,3202.0,3201.0,1.57006563]
[1768337948045,0.245,3201.9,3201.1,1.57006563]
[1768337948433,0.245,3201.9,3201.2,3.12382856]
[1768337948836,0.245,3201.8,3201.1,1.57006563]
[1768337949040,0.245,3201.8,3201.1,4.69398298]
[1768337949256,0.245,3201.7,3201.2,0.4693983]
[1768337949431,0.245,3201.7,3200.9,1.72707219]
[1768337949832,0.245,3201.7,3201.2,0.0343]
[1768337950354,0.16996374,3202.1,3201.2,0.01547284]
[1768337950649,0.245,3202.0,3201.4,1.57006563]
[1768337950842,0.245,3202.0,3201.5,0.47250339]
[1768337951043,0.245,3202.0,3201.3,1.57006563]
[1768337951247,0.1408741,3202.1,3201.3,1.57006563]
[1768337951449,0.1408741,3202.1,3201.5,1.57006563]
[1768337951768,0.245,3202.0,3201.2,0.01547284]
[1768337952470,0.27819134,3202.0,3201.2,0.01547284]
[1768337952760,3.40129118,3202.0,3201.2,0.01547284]
[1768337952949,7.1909039,3202.0,3201.2,0.01547284]
[1768337953259,0.03520335,3201.9,3201.2,0.01547284]
[1768337953989,0.03722504,3201.8,3200.5,1.57006563]
[1768337954475,0.03722504,3201.8,3200.1,0.001]
[1768337954476,0.03722504,3201.2,3200.1,0.001]
[1768337954682,3.12402374,3201.0,3200.1,0.001]
[1768337954980,0.03919313,3200.7,3200.6,0.001]
[1768337955196,6.28724061,3201.0,3200.1,0.001]
[1768337955363,0.245,3200.9,3200.1,0.001]
[1768337956369,5.93472349,3200.7,3199.3,1.57106563]
[1768337956563,6.24882834,3200.6,3199.4,3.12549569]
[1768337956767,0.245,3200.5,3199.4,4.80214146]
[1768337957173,0.245,3200.5,3199.4,1.67664577]
[1768337957543,0.64938283,3200.4,3199.4,1.67664577]
[1768337958054,6.17972349,3200.3,3199.4,1.67664577]
[1768337958253,0.04585142,3200.2,3199.3,0.001]
[1768337958696,6.24980468,3200.1,3199.3,0.001]
[1768337958893,6.49480468,3200.1,3199.3,0.001]
[1768337959053,0.65406561,3200.0,3199.3,0.001]
[1768337959375,0.245,3199.9,3199.3,0.001]
[1768337959564,0.65406561,3200.0,3199.3,0.001]
[1768337959565,0.245,3199.8,3199.3,0.001]
[1768337960883,3.12529299,3199.7,3198.9,0.00080128]
[1768337961395,6.25058598,3199.7,3198.9,0.00080128]
[1768337961593,0.6495586,3199.6,3198.9,0.00080128]
[1768337961805,0.6495586,3199.6,3198.9,1.67744705]
[1768337962410,0.6495586,3199.6,3199.0,1.70790553]
[1768337962626,0.245,3199.5,3199.0,1.63130879]
[1768337962925,3.7791515,3200.0,3199.2,1.67664577]
[1768337962926,0.245,3199.4,3199.2,1.67664577]
[1768337963070,0.245,3199.7,3199.4,1.67664577]
[1768337963366,5.93472349,3201.2,3199.6,1.67664577]
[1768337963367,3.12392615,3201.1,3199.6,1.67664577]
[1768337963566,0.26011233,3201.0,3199.8,1.67664577]
[1768337963798,0.65079646,3200.9,3199.8,1.67664577]
[1768337964309,0.245,3200.8,3199.8,1.67664577]
[1768337964798,3.12441417,3200.6,3199.8,1.67664577]
[1768337965188,6.26394067,3200.6,3199.8,1.67664577]
[1768337965386,3.12441417,3200.6,3199.7,1.67664577]
[1768337965594,3.77379453,3200.6,3199.7,1.67664577]
[1768337966083,3.78890686,3200.6,3199.7,1.67664577]
[1768337966279,3.77379453,3200.6,3199.7,4.80192605]
[1768337966480,0.64938036,3200.6,3199.8,3.12519368]
[1768337966800,0.65079646,3200.9,3199.9,1.67664577]
[1768337966801,0.245,3200.5,3199.9,1.67664577]
[1768337967204,0.002,3200.3,3199.9,1.67664577]
[1768337967510,0.002,3200.3,3199.9,4.80172802]
[1768337967702,0.002,3200.3,3199.9,1.67664577]
[1768337968000,0.002,3200.3,3199.7,1.67664577]
[1768337968203,0.002,3200.3,3199.7,5.28214085]
[1768337968393,0.245,3200.2,3199.8,1.67664577]
[1768337968594,0.245,3200.2,3199.9,1.67664577]
[1768337969517,0.002,3200.3,3200.0,1.67664577]
[1768337970102,0.002,3200.3,3199.7,5.2821379]
[1768337970298,3.14182626,3200.3,3199.5,1.67664577]
[1768337970518,3.12671393,3200.3,3199.5,1.67664577]
[1768337970739,0.247,3200.3,3199.8,1.67664577]
[1768337971088,3.37174514,3200.3,3199.4,1.67664577]
[1768337971290,0.002,3200.3,3199.6,1.67664577]
[1768337971528,0.002,3200.3,3199.8,1.67664577]
[1768337972032,0.002,3200.3,3199.7,0.48021341]
[1768337972186,0.002,3200.3,3199.8,1.67664577]
[1768337973296,0.002,3200.3,3199.9,1.67664577]
[1768337974588,0.002,3200.3,3199.7,3.12522486]
[1768337974923,0.002,3200.3,3199.7,1.67664577]
[1768337975120,0.247,3200.3,3199.7,1.67664577]
[1768337975323,0.247,3200.3,3200.0,1.68459017]
[1768337976290,0.247,3200.3,3199.7,1.69949017]
[1768337976625,0.002,3200.3,3200.0,1.68459017]
[1768337976792,0.002,3200.6,3200.3,1.68459017]
[1768337977322,0.002,3200.6,3199.7,0.0149]
[1768337977323,3.12547457,3201.6,3200.5,1.68459017]
[1768337977627,0.245,3201.5,3200.7,1.68459017]
[1768337977992,0.01511233,3201.4,3200.3,1.68459017]
[1768337978193,0.37367511,3201.5,3200.3,1.68459017]
[1768337978393,0.245,3201.5,3200.4,1.68459017]
[1768337979323,0.002,3201.6,3200.7,1.68459017]
[1768337979499,0.245,3201.5,3200.7,1.68459017]
[1768337979704,0.245,3201.4,3200.7,1.63459017]
[1768337980230,0.01511233,3201.3,3200.4,1.68459017]
[1768337980425,0.245,3201.4,3200.3,1.68459017]
[1768337981303,0.1836473,3201.6,3200.5,1.68459017]
[1768337981304,0.245,3201.3,3200.5,1.68459017]
[1768337981628,0.002,3201.6,3200.6,1.68459017]
[1768337981800,0.245,3201.2,3200.6,1.68459017]
[1768337982322,0.245,3201.2,3200.6,1.68209307]
[1768337983824,0.245,3201.1,3200.7,1.68459017]
[1768337984510,0.002,3201.6,3200.7,1.68459017]
[1768337984511,0.245,3201.5,3200.7,1.68459017]
[1768337984706,0.86986814,3201.5,3200.7,1.68459017]
[1768337985206,0.62486814,3201.5,3200.7,1.68459017]
[1768337985537,3.12550868,3201.6,3200.9,1.68459017]
[1768337985833,0.01511233,3201.5,3200.9,1.68459017]
[1768337986012,0.01511233,3201.5,3200.7,1.68459017]
[1768337986336,6.24901736,3201.6,3200.7,1.68459017]
[1768337986518,0.62490174,3201.5,3200.7,1.68459017]
[1768337987407,3.12363341,3201.4,3200.7,1.68459017]
[1768337987929,0.002,3201.6,3200.7,1.68459017]
[1768337987930,0.002,3201.6,3200.8,1.68459017]
[1768337988099,0.245,3201.5,3200.8,1.68459017]
[1768337988536,6.24888194,3201.6,3200.8,1.68459017]
[1768337988733,0.245,3201.4,3200.8,1.68459017]
[1768337988921,0.245,3201.4,3200.5,1.68459017]
[1768337989123,0.245,3201.4,3200.5,4.80906681]
[1768337989402,0.245,3201.4,3200.4,3.12459951]
[1768337989403,0.62488819,3201.5,3200.8,1.68459017]
[1768337989628,0.002,3201.6,3200.8,1.68459017]
[1768337991141,0.002,3201.1,3200.8,1.68459017]
[1768337991335,0.002,3201.1,3201.0,1.68459017]
[1768337991542,1e-08,3201.6,3201.5,1.68459017]
[1768337991705,1e-08,3201.6,3201.0,1.68459017]
[1768337991911,1e-08,3201.6,3201.2,1.68459017]
[1768337993329,1e-08,3201.6,3201.4,1.68459017]
[1768337994230,0.002,3201.9,3201.4,1.68459017]
[1768337994822,0.00080096,3202.5,3202.1,1.68459017]
[1768337995738,0.00080096,3202.5,3202.2,1.68459017]
[1768337996345,0.00080096,3202.5,3201.9,1.68459017]
[1768337997345,0.00080096,3202.5,3202.2,1.68459017]
[1768337998047,0.00080096,3202.5,3201.5,1.68459017]
[1768337998238,0.00080096,3202.5,3202.0,1.68459017]
[1768337998436,0.00080096,3202.5,3200.6,9.33627109]
[1768337998437,0.00080096,3202.5,3200.4,1.68459017]
[1768337998646,0.00080096,3202.5,3201.5,1.68459017]
[1768337998647,0.26091329,3202.5,3201.5,1.68459017]
[1768337998952,0.00080096,3202.5,3201.5,1.68459017]
[1768337999147,0.00080096,3202.5,3201.0,1.68459017]
[1768337999148,1.60626369,3202.5,3201.0,1.68459017]
[1768337999317,0.16062637,3202.4,3201.2,4.80838985]
[1768337999518,6.24551102,3202.3,3201.2,1.68459017]
[1768337999746,9.36826653,3202.3,3201.2,1.68459017]
[1768337999947,1.60546273,3202.2,3201.5,0.0071]
[1768338000123,6.24551102,3202.3,3201.5,0.0071]
[1768338000124,6.24551102,3202.3,3201.5,0.00460353]
[1768338000325,0.16062637,3202.4,3201.5,1.6891937]
[1768338000529,3.1226923,3202.4,3201.5,1.6891937]
[1768338000736,1.60546273,3202.3,3201.5,0.00460353]
[1768338000935,1.60546273,3202.1,3201.5,0.00460353]
[1768338001135,1.60546273,3202.4,3201.5,0.00460353]
[1768338001336,1.85046273,3202.4,3201.5,0.00460353]
[1768338001636,1.60546273,3202.1,3201.5,0.00210713]
[1768338001955,0.01511233,3202.0,3201.5,0.00210713]
[1768338002251,3.1227721,3202.3,3201.5,0.00210713]
[1768338002452,3.93232612,3202.4,3201.5,1.6866973]
[1768338002752,0.00080096,3202.5,3201.6,1.68459017]
[1768338002753,3.12339088,3202.5,3201.6,1.68459017]
[1768338002929,6.2459808,3202.5,3201.6,1.68459017]
[1768338003629,1.60546273,3202.3,3199.3,3.12563547]
[1768338003944,1.60546273,3201.9,3200.1,1.68459017]
[1768338004153,0.16,3202.0,3200.1,1.68459017]
[1768338004154,1.60546273,3201.7,3200.1,1.68459017]
[1768338004443,1.60546273,3201.5,3200.2,0.50555821]
[1768338004617,1.60546273,3201.5,3200.1,1.68459017]
[1768338004820,1.60546273,3201.5,3200.2,4.83524373]
[1768338005022,1.60546273,3201.5,3200.3,1.67921111]
[1768338005554,0.40705751,3201.6,3200.5,1.67921111]
[1768338005555,3.12363341,3201.4,3200.5,1.67921111]
[1768338006659,6.24726682,3201.4,3200.5,1.67921111]
[1768338007162,6.24726682,3201.4,3200.5,0.0149]
[1768338007365,3.12357356,3201.5,3200.5,2.00806434]
[1768338007578,3.12298847,3202.1,3200.8,1.67921111]
[1768338007579,3.12295056,3202.1,3200.8,1.67921111]
[1768338007769,6.24590112,3202.1,3200.9,1.71045232]
[1768338008066,6.24590112,3202.1,3200.9,1.67921111]
[1768338008268,3.12487727,3202.2,3201.0,1.84713222]
[1768338008552,3.12487727,3202.2,3201.2,1.67921111]
[1768338008757,6.24775454,3202.2,3201.2,1.67921111]
[1768338009362,3.12487727,3202.2,3201.2,1.67921111]
[1768338009656,0.002,3202.2,3201.5,1.67921111]
[1768338009855,0.002,3202.2,3201.6,0.48028033]
[1768338010057,0.002,3202.2,3201.6,2.15949144]
[1768338010261,0.002,3202.2,3201.6,1.92421111]
[1768338011534,0.002,3202.2,3201.6,0.27623438]
[1768338011743,0.002,3202.2,3201.6,3.36839437]
[1768338011950,0.002,3202.2,3201.6,3.39962875]
[1768338012258,0.002,3202.2,3201.6,6.52306703]
[1768338012451,0.002,3202.2,3201.7,0.82022781]
[1768338013860,0.002,3202.2,3201.7,1.67921111]
[1768338014067,0.002,3202.2,3201.8,1.67921111]
[1768338015743,0.002,3202.2,3201.8,4.80241957]
[1768338016275,0.002,3201.9,3201.6,0.245]
[1768338016440,0.002,3201.9,3201.2,1.67921111]
[1768338016640,0.002,3201.9,3201.3,0.41292111]
[1768338017085,0.002,3201.9,3201.3,0.245]
[1768338017380,1.77770256,3201.9,3201.2,0.245]
[1768338017612,0.01511233,3201.8,3201.2,0.245]
[1768338017872,6.24668144,3201.7,3201.0,0.245]
[1768338018556,3.12334072,3201.7,3201.0,0.245]
[1768338019890,3.12331228,3201.8,3201.0,0.245]
[1768338020681,0.002,3201.9,3201.1,1.73981777]
[1768338020879,0.002,3201.9,3201.2,2.56309916]
[1768338021288,0.002,3201.9,3201.3,1.73981777]
[1768338021986,0.002,3201.9,3201.2,0.82328139]
[1768338022189,0.002,3201.9,3201.1,3.12387253]
[1768338022689,0.002,3201.9,3201.3,1.73981777]
[1768338022891,1e-08,3202.7,3202.0,1.73981777]
[1768338023185,1e-08,3202.7,3202.1,1.98561881]
[1768338023489,1e-08,3202.7,3202.2,1.93837965]
[1768338023687,1e-08,3202.7,3202.2,0.19856188]
[1768338023886,1e-08,3202.7,3202.2,3.12285303]
[1768338024383,1e-08,3202.7,3202.2,4.8626708]
[1768338025285,1e-08,3202.7,3200.2,1.55580528]
[1768338025484,1e-08,3202.7,3095.5,0.00081146]
[1768338025485,1.93570256,3201.0,3198.9,3.12686165]
[1768338025657,1.93570256,3201.0,3197.5,0.002]
[1768338025658,0.00080128,3199.3,3198.7,1e-08]
[1768338025856,1.10975004,3199.4,3199.0,2.68072398]
[1768338026070,2.7743263,3200.7,3200.3,1e-08]
[1768338026265,1.77570256,3200.5,3198.9,1e-08]
[1768338026482,1.77570256,3200.1,3198.9,1e-08]
[1768338026960,0.76839641,3199.2,3198.9,1e-08]
[1768338027158,1.77570256,3200.1,3198.9,0.01490001]
[1768338027360,1.77570256,3200.5,3199.0,0.03125976]
[1768338027557,1.77570256,3200.5,3199.1,0.31722287]
[1768338028004,6.24921884,3200.4,3198.9,0.01490001]
[1768338028977,6.14336381,3201.0,3198.9,0.01490001]
[1768338028978,1.77570256,3201.2,3199.1,1.73981777]
[1768338029292,6.2478523,3201.1,3199.1,1.73981777]
[1768338029497,1.77570256,3201.2,3199.5,5.94251395]
[1768338029498,4.8995436,3201.2,3199.5,5.94251395]
[1768338029671,3.12384104,3201.2,3199.7,1.73981777]
[1768338029878,3.12375836,3201.3,3199.7,1.73981777]
[1768338030062,6.24751672,3201.3,3199.7,1.73981777]
[1768338030264,3.12375836,3201.3,3199.7,1.73981777]
[1768338030462,3.12375836,3201.3,3199.7,4.86509345]
[1768338030764,0.81438147,3201.4,3199.9,1.73981777]
[1768338031105,0.81438147,3201.4,3200.0,1.77106777]
[1768338031468,0.81438147,3201.4,3200.0,1.73981777]
[1768338031662,3.12337291,3201.7,3200.0,1.73981777]
[1768338031976,6.24629126,3201.9,3200.1,3.12490234]
[1768338032173,8.02199382,3201.9,3200.2,0.73147201]
[1768338032898,11.14513945,3201.9,3200.2,0.73147201]
[1768338033098,8.02199382,3201.9,3200.2,0.73147201]
[1768338033261,1.77570256,3201.8,3200.2,0.73147201]
[1768338033461,1.81474309,3201.8,3200.2,0.245]
[1768338034081,1.77570256,3201.6,3200.2,0.13046951]
[1768338034277,1.77570256,3201.4,3200.1,0.245]
[1768338036002,3.12373098,3201.3,3200.1,0.245]
[1768338036498,6.24746196,3201.3,3200.1,0.245]
[1768338037402,3.95054743,3201.3,3200.2,0.33699602]
[1768338038070,4.19554743,3201.3,3200.2,0.33699602]
[1768338038271,4.19554743,3201.3,3200.2,3.4617445]
[1768338039588,7.31927841,3201.3,3200.2,3.4617445]
[1768338040123,0.002,3201.0,3200.2,0.33699602]
[1768338040411,0.002,3201.0,3200.1,0.245]
[1768338041001,0.002,3201.0,3200.2,3.1247856]
[1768338041802,1.77523139,3201.0,3200.1,0.245]
[1768338041993,1.77523139,3201.0,3200.1,3.36989456]
[1768338042201,4.89926134,3201.0,3200.1,3.36989456]
[1768338042396,1.77523139,3201.0,3200.2,0.33698946]
[1768338042784,0.002,3201.0,3200.2,0.33698946]
[1768338044214,0.002,3201.0,3200.2,3.46174814]
[1768338044702,0.002,3201.0,3200.2,3.46178806]
[1768338045086,0.002,3201.0,3200.2,6.58659275]
[1768338045284,0.002,3201.0,3200.3,0.68315928]
[1768338046412,0.002,3201.0,3200.3,3.80785702]
[1768338046908,0.002,3201.0,3200.3,0.68315928]
[1768338047114,0.002,3201.0,3200.3,3.12467387]
[1768338048084,0.002,3201.0,3200.3,3.13957387]
[1768338048286,0.002,3201.0,3200.3,0.0149]
[1768338048484,0.002,3201.0,3200.3,3.13957187]
[1768338048701,0.002,3201.0,3200.3,0.0149]
[1768338049414,1.77523139,3201.0,3200.3,0.0149]
[1768338050382,1.77323139,3200.9,3200.3,0.0149]
[1768338050791,1.77323139,3200.9,3200.3,3.13960684]
[1768338050985,0.002,3201.0,3200.3,3.13960684]
[1768338053307,0.002,3201.0,3200.1,3.12489729]
[1768338053525,0.002,3201.0,3200.1,3.43738702]
[1768338053729,0.002,3201.0,3200.3,3.12470705]
[1768338054508,0.002,3201.0,3200.3,8.09057036]
[1768338054730,0.002,3201.0,3200.4,1.84115626]
[1768338057039,0.002,3201.0,3200.5,3.12451179]
[1768338057235,0.002,3201.0,3200.5,6.77009039]
[1768338058437,1e-08,3201.3,3200.6,1.84115626]
[1768338058739,1e-08,3201.3,3200.8,1.84115626]
[1768338059035,1e-08,3201.3,3200.9,6.24824268]
[1768338059206,1e-08,3201.3,3201.0,1.84115626]
[1768338059402,1e-08,3201.3,3201.1,1.12135203]
[1768338059607,1e-08,3201.3,3201.1,2.96250829]
[1768338059835,4.89591285,3202.4,3201.2,0.03123828]
[1768338060139,4.89591285,3202.4,3201.1,2.96250829]
[1768338060438,1.77323139,3202.3,3201.1,2.96250829]
[1768338060604,0.80185943,3202.2,3201.1,2.96250829]
[1768338060804,2.57509082,3202.2,3201.1,2.96250829]
[1768338061016,2.57509082,3202.2,3201.2,6.24765712]
[1768338061216,1.77323139,3202.2,3201.2,6.24765712]
[1768338061939,1.77323139,3202.2,3201.2,8.08881338]
[1768338062142,2.01903243,3202.5,3201.3,0.245]
[1768338062440,1.77323139,3202.4,3201.3,2.08615626]
[1768338062742,6.24597102,3202.5,3200.5,0.52106681]
[1768338062743,1.77323139,3202.2,3200.9,3.85]
[1768338062943,1.77323139,3202.0,3200.9,3.85]
[1768338063122,1.77323139,3201.8,3200.9,3.85]
[1768338063321,0.002,3201.0,3200.9,3.85]
[1768338063554,0.002,3201.0,3200.5,0.52106681]
[1768338063555,0.002,3201.0,3200.5,4.37106681]
[1768338063848,0.002,3201.0,3200.1,3.85]
[1768338064043,0.002,3201.0,3200.1,0.90610676]
[1768338064209,0.002,3201.0,3200.1,3.12484138]
[1768338064407,1.77523139,3201.0,3199.9,0.245]
[1768338064655,1.77523139,3201.0,3199.5,0.245]
[1768338064850,1.77523139,3201.0,3199.6,3.12537157]
[1768338065235,1.81551713,3200.8,3199.6,3.12539067]
[1768338065542,2.06051713,3200.7,3199.7,0.33703907]
[1768338065867,2.06051713,3200.7,3199.2,3.12572248]
[1768338066173,2.06051713,3200.7,3198.3,3.12665624]
[1768338066174,1.81551713,3200.1,3198.4,1.84671182]
[1768338066457,1.81551713,3199.9,3198.4,2.09171182]
[1768338066657,1.81551713,3199.9,3198.9,3.12600911]
[1768338066960,1.81551713,3199.9,3199.0,0.31260091]
[1768338067169,1.81551713,3199.9,3199.0,3.43848623]
[1768338067460,2.06051713,3200.0,3199.0,0.31260091]
[1768338068265,2.06051713,3200.0,3199.0,3.43852623]
[1768338068424,1.81551713,3200.0,3199.0,3.43852623]
[1768338068621,2.06051713,3200.0,3199.1,0.34385262]
[1768338068859,1.81551713,3200.0,3199.1,0.34385262]
[1768338069163,2.06051713,3200.0,3199.1,0.34385262]
[1768338069543,5.94251395,3200.7,3199.2,1.87796963]
[1768338069544,1.81551713,3200.7,3199.2,1.87796963]
[1768338069721,0.245,3200.6,3199.3,0.84735428]
[1768338069922,1.81751713,3201.0,3199.4,1.87796768]
[1768338070124,4.94154936,3201.0,3199.6,1.84671182]